[Event "*** SCC Grand Prix: Titled Tuesday Blitz"]
[Site "Chess.com"]
[Date "2020.07.07"]
[Round "6"]
[White "canary2016"]
[Black "PawnEatingZombie"]
[Result "0-1"]
[WhiteElo "1916"]
[BlackElo "2200"]
[TimeControl "180+1"]
[EndTime "11:06:16 PDT"]
[Termination "PawnEatingZombie won by checkmate"]

1. d4 {[%clk 0:03:00.9]} 1... d5 {[%clk 0:02:58.7]} 2. c4 {[%clk 0:03:00.3]}
2... e6 {[%clk 0:02:58.7]} 3. Nc3 {[%clk 0:02:58.9]} 3... Bb4 {[%clk 0:02:58.8]}
4. cxd5 {[%clk 0:02:56.6]} 4... exd5 {[%clk 0:02:57.1]} 5. Bf4 {[%clk
0:02:53.2]} 5... c6 {[%clk 0:02:56.3]} 6. e3 {[%clk 0:02:52.8]} 6... Ne7 {[%clk
0:02:56.1]} 7. Nf3 {[%clk 0:02:50.9]} 7... O-O {[%clk 0:02:54.8]} 8. Bd3 {[%clk
0:02:50.7]} 8... Bf5 {[%clk 0:02:55.2]} 9. Qc2 {[%clk 0:02:50.3]} 9... Bxd3
{[%clk 0:02:53.9]} 10. Qxd3 {[%clk 0:02:49.6]} 10... Ng6 {[%clk 0:02:53.2]} 11.
Bg3 {[%clk 0:02:48.6]} 11... Nd7 {[%clk 0:02:53.7]} 12. O-O {[%clk 0:02:48.2]}
12... a6 {[%clk 0:02:49]} 13. Ne2 {[%clk 0:02:40]} 13... Be7 {[%clk 0:02:45.2]}
14. Nf4 {[%clk 0:02:40]} 14... Nxf4 {[%clk 0:02:37]} 15. Bxf4 {[%clk 0:02:39.6]}
15... Nf6 {[%clk 0:02:36.7]} 16. Ne5 {[%clk 0:02:38.9]} 16... Bd6 {[%clk
0:02:30]} 17. Bg3 {[%clk 0:02:34.2]} 17... Ne4 {[%clk 0:02:26.8]} 18. Nf3 {[%clk
0:02:24.3]} 18... Bxg3 {[%clk 0:02:22.9]} 19. hxg3 {[%clk 0:02:24.1]} 19... f6
{[%clk 0:02:15.3]} 20. Nd2 {[%clk 0:02:23.5]} 20... Nd6 {[%clk 0:02:15.1]} 21.
Rac1 {[%clk 0:02:20.6]} 21... Re8 {[%clk 0:02:14.2]} 22. Rfe1 {[%clk 0:02:19.7]}
22... Qd7 {[%clk 0:02:12.3]} 23. b3 {[%clk 0:02:15.1]} 23... g6 {[%clk
0:02:07.4]} 24. Kh2 {[%clk 0:02:08.7]} 24... Kg7 {[%clk 0:02:06.9]} 25. Rh1
{[%clk 0:02:08.2]} 25... h5 {[%clk 0:02:02]} 26. Kg1 {[%clk 0:02:07.6]} 26...
Re7 {[%clk 0:01:40.3]} 27. Nf3 {[%clk 0:02:02.9]} 27... Qf5 {[%clk 0:01:30.5]}
28. Qxf5 {[%clk 0:01:57.6]} 28... Nxf5 {[%clk 0:01:31.4]} 29. Nh4 {[%clk
0:01:55.5]} 29... Nd6 {[%clk 0:01:29.1]} 30. f3 {[%clk 0:01:53.7]} 30... a5
{[%clk 0:01:28]} 31. Kf2 {[%clk 0:01:52.5]} 31... a4 {[%clk 0:01:27.9]} 32. Ra1
{[%clk 0:01:42.8]} 32... Ree8 {[%clk 0:01:14.1]} 33. f4 {[%clk 0:01:29.6]} 33...
Ra6 {[%clk 0:01:08.6]} 34. Nf3 {[%clk 0:01:26]} 34... Rea8 {[%clk 0:01:05.3]}
35. bxa4 {[%clk 0:01:22.8]} 35... Ne4+ {[%clk 0:01:01.5]} 36. Ke1 {[%clk
0:01:15.4]} 36... Rxa4 {[%clk 0:00:59.5]} 37. Rh3 {[%clk 0:01:04.2]} 37... Rxa2
{[%clk 0:00:58.3]} 38. Rb1 {[%clk 0:01:01.7]} 38... Ra1 {[%clk 0:00:46.8]} 39.
Rxa1 {[%clk 0:01:00.8]} 39... Rxa1+ {[%clk 0:00:47.7]} 40. Ke2 {[%clk
0:01:00.8]} 40... Ra2+ {[%clk 0:00:48.3]} 41. Ke1 {[%clk 0:00:57.1]} 41... Rxg2
{[%clk 0:00:45.7]} 42. Nh4 {[%clk 0:00:52.8]} 42... Rxg3 {[%clk 0:00:43.1]} 43.
Rxg3 {[%clk 0:00:52.3]} 43... Nxg3 {[%clk 0:00:42.8]} 44. Kf2 {[%clk 0:00:50.7]}
44... Nf5 {[%clk 0:00:40.4]} 45. Nf3 {[%clk 0:00:49.6]} 45... b5 {[%clk
0:00:39.2]} 46. Nd2 {[%clk 0:00:49.6]} 46... b4 {[%clk 0:00:37.1]} 47. Nb3
{[%clk 0:00:49.6]} 47... Nd6 {[%clk 0:00:37]} 48. Nc5 {[%clk 0:00:44.8]} 48...
Ne4+ {[%clk 0:00:35.6]} 49. Ke2 {[%clk 0:00:44.9]} 49... Nxc5 {[%clk 0:00:34.9]}
50. dxc5 {[%clk 0:00:44.5]} 50... h4 {[%clk 0:00:35.1]} 51. Kd3 {[%clk 0:00:40]}
51... h3 {[%clk 0:00:34.4]} 52. Kc2 {[%clk 0:00:40.2]} 52... h2 {[%clk
0:00:34.3]} 53. Kb3 {[%clk 0:00:40.4]} 53... h1=Q {[%clk 0:00:33.8]} 54. Kxb4
{[%clk 0:00:40.6]} 54... Qe4+ {[%clk 0:00:31.4]} 55. Ka5 {[%clk 0:00:40.4]}
55... Qb1 {[%clk 0:00:28]} 56. f5 {[%clk 0:00:38.6]} 56... Qb5# {[%clk
0:00:27.4]} 0-1

[Event "*** SCC Grand Prix: Titled Tuesday Blitz"]
[Site "Chess.com"]
[Date "2020.07.07"]
[Round "6"]
[White "ichangedmyname_yup"]
[Black "SzMM19"]
[Result "1-0"]
[WhiteElo "2411"]
[BlackElo "2561"]
[TimeControl "180+1"]
[EndTime "11:06:18 PDT"]
[Termination "ichangedmyname_yup won by resignation"]

1. e4 {[%clk 0:03:00.9]} 1... c5 {[%clk 0:02:59.8]} 2. Nf3 {[%clk 0:02:59.6]}
2... a6 {[%clk 0:03:00.3]} 3. d4 {[%clk 0:02:52.8]} 3... cxd4 {[%clk 0:03:01.2]}
4. Nxd4 {[%clk 0:02:53.5]} 4... Nf6 {[%clk 0:03:01.4]} 5. Nc3 {[%clk 0:02:54.1]}
5... e5 {[%clk 0:03:01.2]} 6. Nb3 {[%clk 0:02:54.8]} 6... Bb4 {[%clk 0:03:00.4]}
7. Bg5 {[%clk 0:02:55.3]} 7... Qc7 {[%clk 0:02:58.4]} 8. Bxf6 {[%clk 0:02:45.7]}
8... Bxc3+ {[%clk 0:02:58.1]} 9. bxc3 {[%clk 0:02:46.6]} 9... Qxc3+ {[%clk
0:02:58.6]} 10. Nd2 {[%clk 0:02:47.2]} 10... gxf6 {[%clk 0:02:58.5]} 11. Bc4
{[%clk 0:02:41.8]} 11... d6 {[%clk 0:02:48.5]} 12. O-O {[%clk 0:02:35.5]} 12...
Be6 {[%clk 0:02:32.2]} 13. Bxe6 {[%clk 0:02:34.7]} 13... fxe6 {[%clk 0:02:33.1]}
14. Qh5+ {[%clk 0:02:34.9]} 14... Ke7 {[%clk 0:02:33.7]} 15. Nb3 {[%clk
0:02:23.3]} 15... Nc6 {[%clk 0:02:28.8]} 16. Rad1 {[%clk 0:02:21.9]} 16... Rad8
{[%clk 0:02:28]} 17. Rd3 {[%clk 0:02:17.9]} 17... Qxc2 {[%clk 0:02:21.5]} 18.
Rg3 {[%clk 0:02:13.7]} 18... Rdf8 {[%clk 0:01:55.3]} 19. Rg7+ {[%clk 0:02:10.8]}
19... Kd8 {[%clk 0:01:55.6]} 20. Rd1 {[%clk 0:02:01]} 20... Kc8 {[%clk 0:01:55]}
21. Rxd6 {[%clk 0:01:53.5]} 21... Qb1+ {[%clk 0:01:44.6]} 22. Rd1 {[%clk
0:01:46.9]} 22... Qxa2 {[%clk 0:01:30.5]} 23. Nc5 {[%clk 0:01:46.3]} 23... Rd8
{[%clk 0:01:11]} 24. Nxb7 {[%clk 0:01:23.2]} 24... Qb3 {[%clk 0:00:50.3]} 25.
Nxd8 {[%clk 0:01:11.5]} 25... Rxd8 {[%clk 0:00:51.2]} 26. Rc1 {[%clk 0:01:07.5]}
26... Kb8 {[%clk 0:00:41.2]} 27. h3 {[%clk 0:00:56.4]} 27... Qb6 {[%clk
0:00:19.1]} 28. Qf7 {[%clk 0:00:42.8]} 28... Nd4 {[%clk 0:00:17]} 29. Kh2 {[%clk
0:00:22.4]} 29... Nb5 {[%clk 0:00:17]} 30. Qxf6 {[%clk 0:00:16.6]} 30... a5
{[%clk 0:00:12.1]} 31. Rb1 {[%clk 0:00:13.4]} 31... Rc8 {[%clk 0:00:02.3]} 32.
Qxe5+ {[%clk 0:00:12.7]} 1-0

[Event "*** SCC Grand Prix: Titled Tuesday Blitz"]
[Site "Chess.com"]
[Date "2020.07.07"]
[Round "6"]
[White "Arathorn2"]
[Black "talaicito"]
[Result "0-1"]
[WhiteElo "2296"]
[BlackElo "2151"]
[TimeControl "180+1"]
[EndTime "11:06:18 PDT"]
[Termination "talaicito won on time"]

1. d4 {[%clk 0:03:00.9]} 1... e6 {[%clk 0:02:59.9]} 2. c4 {[%clk 0:03:01.1]}
2... f5 {[%clk 0:03:00.1]} 3. Nf3 {[%clk 0:03:00.6]} 3... Nf6 {[%clk 0:03:00.2]}
4. g3 {[%clk 0:03:00.9]} 4... Be7 {[%clk 0:03:00.9]} 5. Bg2 {[%clk 0:03:01.2]}
5... d6 {[%clk 0:03:01.6]} 6. O-O {[%clk 0:03:00.3]} 6... O-O {[%clk 0:03:02.5]}
7. Nc3 {[%clk 0:03:00.7]} 7... Ne4 {[%clk 0:03:01.9]} 8. Qc2 {[%clk 0:03:00.1]}
8... Nxc3 {[%clk 0:03:01.5]} 9. Qxc3 {[%clk 0:02:59.3]} 9... a5 {[%clk
0:03:01.6]} 10. b3 {[%clk 0:02:57.3]} 10... Nc6 {[%clk 0:03:01.8]} 11. Bb2
{[%clk 0:02:57.3]} 11... Bf6 {[%clk 0:03:02.4]} 12. Rad1 {[%clk 0:02:56.6]}
12... Qe8 {[%clk 0:03:02.3]} 13. Qc2 {[%clk 0:02:54.4]} 13... e5 {[%clk
0:03:02.3]} 14. e4 {[%clk 0:02:35.8]} 14... f4 {[%clk 0:02:48.8]} 15. dxe5
{[%clk 0:02:34.6]} 15... dxe5 {[%clk 0:02:48.3]} 16. gxf4 {[%clk 0:02:22.7]}
16... exf4 {[%clk 0:02:49.2]} 17. e5 {[%clk 0:02:11.6]} 17... Be7 {[%clk
0:02:48.9]} 18. Rfe1 {[%clk 0:02:04.7]} 18... Be6 {[%clk 0:02:48.7]} 19. Qe4
{[%clk 0:01:48.2]} 19... Qh5 {[%clk 0:02:40.6]} 20. Kh1 {[%clk 0:01:12.5]} 20...
g5 {[%clk 0:02:18.3]} 21. Rg1 {[%clk 0:00:52.3]} 21... Kh8 {[%clk 0:01:53.1]}
22. Nd2 {[%clk 0:00:32.1]} 22... Rad8 {[%clk 0:01:36.6]} 23. f3 {[%clk
0:00:28.4]} 23... Nb4 {[%clk 0:01:16.5]} 24. Nb1 {[%clk 0:00:24.8]} 24... c6
{[%clk 0:01:00.7]} 25. Nc3 {[%clk 0:00:23.7]} 25... Bf5 {[%clk 0:00:56.6]} 26.
Qe2 {[%clk 0:00:22.2]} 26... Nd3 {[%clk 0:00:32.9]} 27. Ne4 {[%clk 0:00:20.9]}
27... Bxe4 {[%clk 0:00:29.1]} 28. e6+ {[%clk 0:00:16.6]} 28... Kg8 {[%clk
0:00:28.1]} 29. Rd2 {[%clk 0:00:04]} 29... Bf5 {[%clk 0:00:17.8]} 30. Ba1 {[%clk
0:00:03.7]} 30... Bc5 {[%clk 0:00:15.4]} 31. Rxd3 {[%clk 0:00:02.3]} 31... Bxd3
{[%clk 0:00:14]} 32. Qb2 {[%clk 0:00:02]} 32... Bd4 {[%clk 0:00:13.7]} 33. e7
{[%clk 0:00:01.1]} 33... Bxb2 {[%clk 0:00:13.4]} 0-1

[Event "*** SCC Grand Prix: Titled Tuesday Blitz"]
[Site "Chess.com"]
[Date "2020.07.07"]
[Round "6"]
[White "Isajevsky_Anton"]
[Black "Gloomy_Wanderer"]
[Result "0-1"]
[WhiteElo "2543"]
[BlackElo "2759"]
[TimeControl "180+1"]
[EndTime "11:06:19 PDT"]
[Termination "Gloomy_Wanderer won by resignation"]

1. c4 {[%clk 0:03:00.9]} 1... e5 {[%clk 0:02:59.7]} 2. g3 {[%clk 0:03:00.8]}
2... Nc6 {[%clk 0:02:59.8]} 3. Bg2 {[%clk 0:03:00.9]} 3... f5 {[%clk 0:03:00.5]}
4. Nc3 {[%clk 0:03:00.8]} 4... Nf6 {[%clk 0:03:00.8]} 5. d3 {[%clk 0:02:57.9]}
5... Bb4 {[%clk 0:03:00.7]} 6. Bd2 {[%clk 0:02:54.8]} 6... O-O {[%clk
0:02:59.4]} 7. e3 {[%clk 0:02:55]} 7... Bxc3 {[%clk 0:02:30.4]} 8. Bxc3 {[%clk
0:02:54.5]} 8... d5 {[%clk 0:02:30.9]} 9. cxd5 {[%clk 0:02:50]} 9... Nxd5 {[%clk
0:02:31.1]} 10. Ne2 {[%clk 0:02:49.3]} 10... Be6 {[%clk 0:02:28.2]} 11. e4
{[%clk 0:02:09]} 11... Nxc3 {[%clk 0:02:20.4]} 12. bxc3 {[%clk 0:02:08.7]} 12...
f4 {[%clk 0:02:13.7]} 13. f3 {[%clk 0:02:08.1]} 13... Na5 {[%clk 0:02:03.9]} 14.
O-O {[%clk 0:01:23.6]} 14... c5 {[%clk 0:01:58.1]} 15. Qc2 {[%clk 0:01:17.5]}
15... Nc6 {[%clk 0:01:54.2]} 16. Rad1 {[%clk 0:01:15.7]} 16... g5 {[%clk
0:01:50.2]} 17. Kh1 {[%clk 0:01:06.2]} 17... Qb6 {[%clk 0:01:46]} 18. Rb1 {[%clk
0:00:41.4]} 18... Qa6 {[%clk 0:01:44.1]} 19. Rb2 {[%clk 0:00:35.3]} 19... Rad8
{[%clk 0:01:42.3]} 20. Rd1 {[%clk 0:00:33.3]} 20... Rd6 {[%clk 0:01:36.9]} 21.
gxf4 {[%clk 0:00:32.5]} 21... gxf4 {[%clk 0:01:35.3]} 22. d4 {[%clk 0:00:32.6]}
22... exd4 {[%clk 0:01:17.5]} 23. cxd4 {[%clk 0:00:32.6]} 23... cxd4 {[%clk
0:01:17.6]} 24. Qd2 {[%clk 0:00:26]} 24... Ne5 {[%clk 0:01:03.5]} 25. Nxf4
{[%clk 0:00:15.6]} 25... Nc4 {[%clk 0:01:03.5]} 26. Qf2 {[%clk 0:00:08.6]} 26...
Nxb2 {[%clk 0:00:47]} 27. Qg3+ {[%clk 0:00:08.4]} 27... Kh8 {[%clk 0:00:46.6]}
28. Nh5 {[%clk 0:00:08.3]} 28... Rf7 {[%clk 0:00:35]} 29. Rxd4 {[%clk 0:00:05]}
29... Nc4 {[%clk 0:00:19.8]} 30. Rxc4 {[%clk 0:00:01.6]} 30... Bxc4 {[%clk
0:00:18.7]} 31. Qe5+ {[%clk 0:00:02.2]} 31... Kg8 {[%clk 0:00:18.3]} 32. Qe8+
{[%clk 0:00:02.1]} 32... Rf8 {[%clk 0:00:18.5]} 33. Nf6+ {[%clk 0:00:01.8]}
33... Rxf6 {[%clk 0:00:18.4]} 0-1

[Event "*** SCC Grand Prix: Titled Tuesday Blitz"]
[Site "Chess.com"]
[Date "2020.07.07"]
[Round "6"]
[White "Omk124"]
[Black "AlexSuv"]
[Result "0-1"]
[WhiteElo "2380"]
[BlackElo "2576"]
[TimeControl "180+1"]
[EndTime "11:06:19 PDT"]
[Termination "AlexSuv won by resignation"]

1. e4 {[%clk 0:03:00.9]} 1... c5 {[%clk 0:02:59.5]} 2. Nf3 {[%clk 0:03:00.6]}
2... e6 {[%clk 0:02:59.2]} 3. d4 {[%clk 0:03:00.3]} 3... cxd4 {[%clk 0:03:00.1]}
4. Nxd4 {[%clk 0:03:01.2]} 4... Nc6 {[%clk 0:03:00.6]} 5. Nc3 {[%clk 0:02:59.3]}
5... Qc7 {[%clk 0:03:00.9]} 6. Be3 {[%clk 0:02:59]} 6... a6 {[%clk 0:03:01.3]}
7. Qd2 {[%clk 0:02:58.5]} 7... Nf6 {[%clk 0:03:01.1]} 8. f4 {[%clk 0:02:52.9]}
8... Bb4 {[%clk 0:02:56.1]} 9. Bd3 {[%clk 0:02:47.2]} 9... Na5 {[%clk
0:02:55.9]} 10. O-O {[%clk 0:02:45.8]} 10... Nc4 {[%clk 0:02:48.6]} 11. Bxc4
{[%clk 0:02:45.5]} 11... Qxc4 {[%clk 0:02:49.5]} 12. Qd3 {[%clk 0:02:46.4]}
12... Qxd3 {[%clk 0:02:21.6]} 13. cxd3 {[%clk 0:02:47.3]} 13... b5 {[%clk
0:02:22.1]} 14. h3 {[%clk 0:02:45]} 14... Bb7 {[%clk 0:02:21.7]} 15. Rac1 {[%clk
0:02:43.1]} 15... O-O {[%clk 0:02:20.7]} 16. a3 {[%clk 0:02:42.5]} 16... Ba5
{[%clk 0:02:14.5]} 17. Nf3 {[%clk 0:02:41.5]} 17... Rac8 {[%clk 0:02:11.8]} 18.
g4 {[%clk 0:02:39.6]} 18... d6 {[%clk 0:02:05.1]} 19. b4 {[%clk 0:02:38.5]}
19... Bd8 {[%clk 0:02:02.5]} 20. Kf2 {[%clk 0:02:32.8]} 20... Nd7 {[%clk
0:01:56]} 21. Ne2 {[%clk 0:02:30.8]} 21... Be7 {[%clk 0:01:44.8]} 22. Ng3 {[%clk
0:02:24.4]} 22... g6 {[%clk 0:01:40.6]} 23. g5 {[%clk 0:02:20.5]} 23... f6
{[%clk 0:01:34.6]} 24. h4 {[%clk 0:02:18.8]} 24... d5 {[%clk 0:01:20.6]} 25. Nd4
{[%clk 0:02:11]} 25... Kf7 {[%clk 0:01:15.7]} 26. f5 {[%clk 0:02:05.5]} 26...
exf5 {[%clk 0:01:11.9]} 27. exf5 {[%clk 0:02:01.5]} 27... Ne5 {[%clk 0:01:12.1]}
28. Ke2 {[%clk 0:01:58.5]} 28... Rxc1 {[%clk 0:01:00.4]} 29. Bxc1 {[%clk
0:01:53.6]} 29... Bc8 {[%clk 0:00:52.8]} 30. fxg6+ {[%clk 0:01:52.2]} 30... hxg6
{[%clk 0:00:53.1]} 31. Bb2 {[%clk 0:01:47.7]} 31... Bg4+ {[%clk 0:00:50.2]} 32.
Kd2 {[%clk 0:01:43.8]} 32... Kg7 {[%clk 0:00:47.5]} 33. Rf4 {[%clk 0:01:39.5]}
33... fxg5 {[%clk 0:00:45.1]} 34. Rxf8 {[%clk 0:01:20.3]} 34... Kxf8 {[%clk
0:00:46]} 35. hxg5 {[%clk 0:01:19.7]} 35... Bxg5+ {[%clk 0:00:46.9]} 36. Ke1
{[%clk 0:01:19.2]} 36... Nxd3+ {[%clk 0:00:46.5]} 37. Kf1 {[%clk 0:01:16.5]}
37... Nxb2 {[%clk 0:00:47.4]} 38. Kf2 {[%clk 0:01:13.8]} 38... Nc4 {[%clk
0:00:46.2]} 39. Nf1 {[%clk 0:01:09.6]} 39... Nxa3 {[%clk 0:00:45.4]} 40. Kg3
{[%clk 0:01:10]} 40... Bd7 {[%clk 0:00:44.7]} 41. Nb3 {[%clk 0:01:09.3]} 41...
Be7 {[%clk 0:00:43.5]} 42. Nc5 {[%clk 0:01:10.2]} 42... Bxc5 {[%clk 0:00:42.8]}
43. bxc5 {[%clk 0:01:11.1]} 43... b4 {[%clk 0:00:43.3]} 44. Ne3 {[%clk 0:01:12]}
44... b3 {[%clk 0:00:43]} 45. Nxd5 {[%clk 0:01:12.9]} 45... b2 {[%clk
0:00:43.4]} 46. Nc3 {[%clk 0:01:13.8]} 46... b1=Q {[%clk 0:00:42.6]} 47. Nxb1
{[%clk 0:01:14.7]} 47... Nxb1 {[%clk 0:00:43.5]} 48. Kf4 {[%clk 0:01:15.6]}
48... Ke7 {[%clk 0:00:43.9]} 49. Kg5 {[%clk 0:01:16.5]} 49... Bf5 {[%clk
0:00:44.1]} 50. c6 {[%clk 0:01:15.6]} 50... a5 {[%clk 0:00:44.6]} 51. c7 {[%clk
0:01:16.5]} 51... Kd7 {[%clk 0:00:45.1]} 52. Kf6 {[%clk 0:01:17.4]} 52... Kxc7
{[%clk 0:00:45.2]} 53. Kg5 {[%clk 0:01:16]} 53... a4 {[%clk 0:00:46.1]} 54. Kf6
{[%clk 0:01:16.9]} 54... a3 {[%clk 0:00:47]} 55. Kg5 {[%clk 0:01:17.8]} 55... a2
{[%clk 0:00:47.9]} 56. Kf6 {[%clk 0:01:18.7]} 56... a1=Q+ {[%clk 0:00:48.1]} 57.
Kg5 {[%clk 0:01:19.6]} 57... Qe5 {[%clk 0:00:47.1]} 58. Kh6 {[%clk 0:01:18.9]}
58... Bd7 {[%clk 0:00:46.3]} 59. Kh7 {[%clk 0:01:17.9]} 59... g5 {[%clk
0:00:46.5]} 60. Kh6 {[%clk 0:01:17.5]} 60... g4 {[%clk 0:00:46.1]} 61. Kh7
{[%clk 0:01:17.5]} 61... g3 {[%clk 0:00:46.7]} 62. Kh6 {[%clk 0:01:18.4]} 62...
g2 {[%clk 0:00:47.2]} 63. Kh7 {[%clk 0:01:19.3]} 63... g1=R {[%clk 0:00:46.6]}
64. Kh6 {[%clk 0:01:20.2]} 64... Nc3 {[%clk 0:00:45.2]} 65. Kh7 {[%clk
0:01:18.4]} 65... Nd5 {[%clk 0:00:44.3]} 0-1

[Event "*** SCC Grand Prix: Titled Tuesday Blitz"]
[Site "Chess.com"]
[Date "2020.07.07"]
[Round "6"]
[White "AwareIdea"]
[Black "Grieve72"]
[Result "1-0"]
[WhiteElo "2478"]
[BlackElo "2242"]
[TimeControl "180+1"]
[EndTime "11:06:19 PDT"]
[Termination "AwareIdea won on time"]

1. d4 {[%clk 0:03:00.9]} 1... d5 {[%clk 0:02:57.6]} 2. Nc3 {[%clk 0:03:01]} 2...
Nf6 {[%clk 0:02:53]} 3. Bf4 {[%clk 0:03:00.7]} 3... c5 {[%clk 0:02:46.5]} 4. e3
{[%clk 0:02:54.1]} 4... cxd4 {[%clk 0:02:46.6]} 5. exd4 {[%clk 0:02:53.1]} 5...
a6 {[%clk 0:02:47]} 6. Qd2 {[%clk 0:02:51.2]} 6... Nc6 {[%clk 0:02:41.1]} 7. Nf3
{[%clk 0:02:48.7]} 7... h6 {[%clk 0:02:30.4]} 8. Ne5 {[%clk 0:02:44.1]} 8... Bf5
{[%clk 0:02:23]} 9. f3 {[%clk 0:02:37]} 9... e6 {[%clk 0:02:20.7]} 10. Nxc6
{[%clk 0:02:34.8]} 10... bxc6 {[%clk 0:02:20.5]} 11. a3 {[%clk 0:02:32.5]} 11...
c5 {[%clk 0:02:12.5]} 12. g4 {[%clk 0:02:17.8]} 12... Bg6 {[%clk 0:02:07.2]} 13.
dxc5 {[%clk 0:01:58]} 13... Bxc5 {[%clk 0:02:05.2]} 14. h4 {[%clk 0:01:57.9]}
14... h5 {[%clk 0:01:24.9]} 15. g5 {[%clk 0:01:33.7]} 15... Nd7 {[%clk
0:01:23.1]} 16. O-O-O {[%clk 0:01:32.3]} 16... O-O {[%clk 0:00:55.8]} 17. Bd3
{[%clk 0:01:31.3]} 17... Bxd3 {[%clk 0:00:55.9]} 18. Qxd3 {[%clk 0:01:32.2]}
18... g6 {[%clk 0:00:56.2]} 19. Rhe1 {[%clk 0:00:55.1]} 19... Qa5 {[%clk
0:00:50.4]} 20. Rxe6 {[%clk 0:00:37.2]} 20... fxe6 {[%clk 0:00:33.8]} 21. Qxg6+
{[%clk 0:00:36.5]} 21... Kh8 {[%clk 0:00:34.2]} 22. Qxh5+ {[%clk 0:00:31]} 22...
Kg8 {[%clk 0:00:33.9]} 23. Qg6+ {[%clk 0:00:30.6]} 23... Kh8 {[%clk 0:00:34.3]}
24. Qh6+ {[%clk 0:00:23]} 24... Kg8 {[%clk 0:00:33.4]} 25. g6 {[%clk 0:00:22.9]}
25... Nf6 {[%clk 0:00:03.8]} 26. g7 {[%clk 0:00:20.5]} 26... Rfe8 {[%clk
0:00:03]} 27. Qxf6 {[%clk 0:00:16.6]} 27... Ra7 {[%clk 0:00:02.5]} 28. Be5
{[%clk 0:00:16.1]} 28... Qd8 {[%clk 0:00:01.4]} 29. Qh6 {[%clk 0:00:15.5]} 1-0

[Event "*** SCC Grand Prix: Titled Tuesday Blitz"]
[Site "Chess.com"]
[Date "2020.07.07"]
[Round "6"]
[White "Nikithebest"]
[Black "Chuchofrio1"]
[Result "1-0"]
[WhiteElo "2476"]
[BlackElo "2239"]
[TimeControl "180+1"]
[EndTime "11:06:19 PDT"]
[Termination "Nikithebest won by checkmate"]

1. e4 {[%clk 0:03:00.9]} 1... e5 {[%clk 0:03:00]} 2. Nf3 {[%clk 0:03:01.2]} 2...
Nc6 {[%clk 0:02:59.5]} 3. Nc3 {[%clk 0:03:00.9]} 3... Nf6 {[%clk 0:02:55.4]} 4.
d4 {[%clk 0:03:01.5]} 4... exd4 {[%clk 0:02:52.2]} 5. Nxd4 {[%clk 0:03:02.4]}
5... Bb4 {[%clk 0:02:51.5]} 6. Nxc6 {[%clk 0:03:02.3]} 6... bxc6 {[%clk
0:02:52.4]} 7. Bd3 {[%clk 0:03:02.8]} 7... d5 {[%clk 0:02:52]} 8. exd5 {[%clk
0:03:03.7]} 8... Nxd5 {[%clk 0:02:52.4]} 9. O-O {[%clk 0:02:54.8]} 9... O-O
{[%clk 0:02:45.2]} 10. Ne4 {[%clk 0:02:52.4]} 10... Bf5 {[%clk 0:02:41.4]} 11.
Qf3 {[%clk 0:02:45.9]} 11... Bg6 {[%clk 0:02:40.9]} 12. c4 {[%clk 0:02:44]}
12... Ne7 {[%clk 0:02:34.7]} 13. Rd1 {[%clk 0:02:33]} 13... Qc8 {[%clk
0:02:29.6]} 14. a3 {[%clk 0:02:30.2]} 14... Bd6 {[%clk 0:02:26]} 15. Nxd6 {[%clk
0:02:01.5]} 15... cxd6 {[%clk 0:02:26.9]} 16. Bg5 {[%clk 0:01:55.5]} 16... Bxd3
{[%clk 0:02:06.1]} 17. Bxe7 {[%clk 0:01:52.1]} 17... Re8 {[%clk 0:02:05.9]} 18.
Qxd3 {[%clk 0:01:43.9]} 18... Rxe7 {[%clk 0:02:05.6]} 19. Qxd6 {[%clk
0:01:44.6]} 19... Qe8 {[%clk 0:02:05.6]} 20. h3 {[%clk 0:01:39.8]} 20... Rb8
{[%clk 0:02:04]} 21. b4 {[%clk 0:01:38]} 21... Re2 {[%clk 0:02:02.4]} 22. Qc5
{[%clk 0:01:35.7]} 22... Rb7 {[%clk 0:01:51.1]} 23. Rd6 {[%clk 0:01:33.7]} 23...
Rc7 {[%clk 0:01:48.1]} 24. Rad1 {[%clk 0:01:30.8]} 24... Re1+ {[%clk 0:01:46.3]}
25. Rxe1 {[%clk 0:01:28.3]} 25... Qxe1+ {[%clk 0:01:47.2]} 26. Kh2 {[%clk
0:01:28.8]} 26... Qe8 {[%clk 0:01:47]} 27. b5 {[%clk 0:01:25.5]} 27... Qe7
{[%clk 0:01:18.1]} 28. bxc6 {[%clk 0:01:19.8]} 28... h6 {[%clk 0:01:14.9]} 29.
Qd5 {[%clk 0:01:13.4]} 29... Rc8 {[%clk 0:00:42.9]} 30. g3 {[%clk 0:01:10.7]}
30... g6 {[%clk 0:00:19.1]} 31. a4 {[%clk 0:01:10.1]} 31... Rf8 {[%clk 0:00:13]}
32. Rxg6+ {[%clk 0:01:06.2]} 32... Kh7 {[%clk 0:00:12.6]} 33. Rd6 {[%clk
0:01:02.3]} 33... Qe2 {[%clk 0:00:12.4]} 34. Qf5+ {[%clk 0:00:58.7]} 34... Kg7
{[%clk 0:00:07.9]} 35. Qf4 {[%clk 0:00:48.5]} 35... f6 {[%clk 0:00:02.6]} 36. c7
{[%clk 0:00:44.7]} 36... Qe7 {[%clk 0:00:01.5]} 37. Qg4+ {[%clk 0:00:41.8]}
37... Kf7 {[%clk 0:00:01.4]} 38. Rd7 {[%clk 0:00:41.8]} 38... Qxd7 {[%clk
0:00:02.3]} 39. Qxd7+ {[%clk 0:00:41.6]} 39... Kg6 {[%clk 0:00:02.7]} 40. c8=R
{[%clk 0:00:39.8]} 40... Rxc8 {[%clk 0:00:03.6]} 41. Qxc8 {[%clk 0:00:40]} 41...
a5 {[%clk 0:00:04.5]} 42. Qg8+ {[%clk 0:00:36.5]} 42... Kh5 {[%clk 0:00:05.4]}
43. Qg4# {[%clk 0:00:35.8]} 1-0